[Event "Titled Tuesday Blitz January 25 2022"]
[White "Nakamura, Hikaru"]
[Black "Vokhidov, Shamsiddin"]
[WhiteFideId "2016192"]
[BlackFideId "14204223"]
[WhiteElo "3202"]
[BlackElo "2818"]
[Result "1-0"]
[Round "04"]
[TimeControl "180+1"]
[Date "2022.01.26"]
[WhiteClock "0:01:47"]
[BlackClock "0:01:13"]

1. Nf3 {[%clk 0:03:00]}  d5 {[%clk 0:02:59]} 2. e3 {[%clk 0:02:59]}  c5 {[%clk 0:02:59]} 3. b3 {[%clk 0:02:56]}  a6 {[%clk 0:02:59]} 4. Bb2 {[%clk 0:02:56]}  Nc6 {[%clk 0:02:59]} 5. d4 {[%clk 0:02:56]}  Nf6 {[%clk 0:02:58]} 6. Nbd2 {[%clk 0:02:54]}  cxd4 {[%clk 0:02:56]} 7. Nxd4 {[%clk 0:02:55]}  Bg4 {[%clk 0:02:50]} 8. Nxc6 {[%clk 0:02:50]}  bxc6 {[%clk 0:02:49]} 9. Be2 {[%clk 0:02:50]}  Bxe2 {[%clk 0:02:47]} 10. Qxe2 {[%clk 0:02:50]}  g6 {[%clk 0:02:43]} 11. Bxf6 {[%clk 0:02:47]}  exf6 {[%clk 0:02:43]} 12. O-O {[%clk 0:02:47]}  Bg7 {[%clk 0:02:40]} 13. c4 {[%clk 0:02:47]}  O-O {[%clk 0:02:37]} 14. Rfd1 {[%clk 0:02:47]}  f5 {[%clk 0:02:37]} 15. Rac1 {[%clk 0:02:47]}  Qa5 {[%clk 0:02:32]} 16. cxd5 {[%clk 0:02:43]}  cxd5 {[%clk 0:02:31]} 17. Nf3 {[%clk 0:02:43]}  Rfc8 {[%clk 0:02:30]} 18. g3 {[%clk 0:02:37]}  Bf6 {[%clk 0:02:29]} 19. Kg2 {[%clk 0:02:36]}  Kg7 {[%clk 0:02:29]} 20. h4 {[%clk 0:02:36]}  h5 {[%clk 0:02:19]} 21. Rc2 {[%clk 0:02:36]}  Rxc2 {[%clk 0:02:02]} 22. Qxc2 {[%clk 0:02:37]}  Rd8 {[%clk 0:02:02]} 23. Rd2 {[%clk 0:02:26]}  Rd7 {[%clk 0:02:01]} 24. Qd3 {[%clk 0:02:25]}  Qb4 {[%clk 0:01:50]} 25. Qxa6 {[%clk 0:02:18]}  Rd6 {[%clk 0:01:39]} 26. Qd3 {[%clk 0:02:15]}  Qa5 {[%clk 0:01:37]} 27. Rc2 {[%clk 0:02:12]}  Qa8 {[%clk 0:01:36]} 28. Nd4 {[%clk 0:02:11]}  Ra6 {[%clk 0:01:35]} 29. a4 {[%clk 0:02:11]}  Rb6 {[%clk 0:01:35]} 30. Rc5 {[%clk 0:02:07]}  Rb4 {[%clk 0:01:34]} 31. Rb5 {[%clk 0:02:02]}  Rxb5 {[%clk 0:01:34]} 32. Qxb5 {[%clk 0:02:00]}  Qd8 {[%clk 0:01:25]} 33. Nf3 {[%clk 0:01:58]}  Qd6 {[%clk 0:01:21]} 34. a5 {[%clk 0:01:57]}  d4 {[%clk 0:01:14]} 35. exd4 {[%clk 0:01:54]}  f4 {[%clk 0:01:12]} 36. a6 {[%clk 0:01:48]}  Bxd4 {[%clk 0:01:13]} 37. Qd3 {[%clk 0:01:47]} 1-0


[Site "https://www.chess.com"]

[Event "Titled Tuesday Blitz January 25 2022"]
[White "Nozdrachev, Leonid"]
[Black "Harshavardhan G B"]
[WhiteFideId "24113433"]
[BlackFideId "25059009"]
[WhiteElo "2124"]
[BlackElo "1831"]
[Result "0-1"]
[Round "04"]
[TimeControl "180+1"]
[Date "2022.01.26"]
[WhiteClock "0:00:02"]
[BlackClock "0:00:14"]

1. e4 {[%clk 0:01:45]}  c5 {[%clk 0:02:41]} 2. c3 {[%clk 0:01:44]}  Nf6 {[%clk 0:02:36]} 3. e5 {[%clk 0:01:44]}  Nd5 {[%clk 0:02:36]} 4. d4 {[%clk 0:01:44]}  cxd4 {[%clk 0:02:36]} 5. Nf3 {[%clk 0:01:45]}  Nc6 {[%clk 0:02:36]} 6. Bc4 {[%clk 0:01:45]}  Nb6 {[%clk 0:02:36]} 7. Bb3 {[%clk 0:01:44]}  d5 {[%clk 0:02:36]} 8. exd6 {[%clk 0:01:43]}  Qxd6 {[%clk 0:02:36]} 9. O-O {[%clk 0:01:44]}  Be6 {[%clk 0:02:34]} 10. Bxe6 {[%clk 0:01:40]}  Qxe6 {[%clk 0:02:34]} 11. Re1 {[%clk 0:01:39]}  Qd6 {[%clk 0:02:32]} 12. Nxd4 {[%clk 0:01:37]}  Nxd4 {[%clk 0:02:30]} 13. Qxd4 {[%clk 0:01:31]}  Qxd4 {[%clk 0:02:28]} 14. cxd4 {[%clk 0:01:32]}  e6 {[%clk 0:02:29]} 15. Nc3 {[%clk 0:01:31]}  Rd8 {[%clk 0:02:28]} 16. Be3 {[%clk 0:01:17]}  Nd5 {[%clk 0:02:21]} 17. Nxd5 {[%clk 0:01:15]}  Rxd5 {[%clk 0:02:20]} 18. Rac1 {[%clk 0:01:14]}  Kd7 {[%clk 0:02:20]} 19. Rc4 {[%clk 0:01:13]}  Bd6 {[%clk 0:02:18]} 20. Rec1 {[%clk 0:01:13]}  h5 {[%clk 0:02:14]} 21. h3 {[%clk 0:01:12]}  a6 {[%clk 0:02:07]} 22. Kf1 {[%clk 0:01:11]}  Rb5 {[%clk 0:02:04]} 23. b3 {[%clk 0:01:08]}  Ra5 {[%clk 0:02:01]} 24. R1c2 {[%clk 0:01:02]}  Rd5 {[%clk 0:01:54]} 25. Ke2 {[%clk 0:01:02]}  Ra8 {[%clk 0:01:52]} 26. Kf3 {[%clk 0:00:54]}  a5 {[%clk 0:01:47]} 27. a4 {[%clk 0:00:53]}  b5 {[%clk 0:01:46]} 28. Rc6 {[%clk 0:00:51]}  Ra7 {[%clk 0:01:32]} 29. Rb6 {[%clk 0:00:47]}  bxa4 {[%clk 0:01:30]} 30. bxa4 {[%clk 0:00:48]}  Rc7 {[%clk 0:01:29]} 31. Rbb2 {[%clk 0:00:23]}  Bb4 {[%clk 0:01:18]} 32. g4 {[%clk 0:00:18]}  hxg4+ {[%clk 0:01:16]} 33. hxg4 {[%clk 0:00:19]}  f5 {[%clk 0:01:11]} 34. gxf5 {[%clk 0:00:17]}  exf5 {[%clk 0:01:10]} 35. Rxc7+ {[%clk 0:00:15]}  Kxc7 {[%clk 0:01:11]} 36. Rc2+ {[%clk 0:00:16]}  Kd7 {[%clk 0:01:10]} 37. Rc1 {[%clk 0:00:11]}  Ke6 {[%clk 0:01:04]} 38. Rc6+ {[%clk 0:00:10]}  Kf7 {[%clk 0:00:58]} 39. Rb6 {[%clk 0:00:05]}  g6 {[%clk 0:00:52]} 40. Rb7+ {[%clk 0:00:03]}  Ke6 {[%clk 0:00:51]} 41. Rb6+ {[%clk 0:00:03]}  Rd6 {[%clk 0:00:50]} 42. Rb5 {[%clk 0:00:03]}  Kf6 {[%clk 0:00:48]} 43. d5 {[%clk 0:00:02]}  g5 {[%clk 0:00:45]} 44. Bd4+ {[%clk 0:00:02]}  Kg6 {[%clk 0:00:45]} 45. Be5 {[%clk 0:00:03]}  Rd7 {[%clk 0:00:45]} 46. Rb6+ {[%clk 0:00:03]}  Kh5 {[%clk 0:00:44]} 47. d6 {[%clk 0:00:03]}  Bd2 {[%clk 0:00:41]} 48. Ke2 {[%clk 0:00:03]}  Bb4 {[%clk 0:00:38]} 49. Kd3 {[%clk 0:00:02]}  Kg4 {[%clk 0:00:38]} 50. Kd4 {[%clk 0:00:03]}  f4 {[%clk 0:00:36]} 51. Kd5 {[%clk 0:00:03]}  Kf5 {[%clk 0:00:36]} 52. f3 {[%clk 0:00:03]}  Rh7 {[%clk 0:00:30]} 53. Rc6 {[%clk 0:00:03]}  g4 {[%clk 0:00:28]} 54. fxg4+ {[%clk 0:00:04]}  Kxg4 {[%clk 0:00:28]} 55. Rc7 {[%clk 0:00:04]}  Rh5 {[%clk 0:00:28]} 56. d7 {[%clk 0:00:03]}  Be7 {[%clk 0:00:27]} 57. Rc8 {[%clk 0:00:03]}  f3 {[%clk 0:00:25]} 58. Re8 {[%clk 0:00:01]}  f2 {[%clk 0:00:20]} 59. Rxe7 {[%clk 0:00:01]}  f1=Q {[%clk 0:00:21]} 60. Rg7+ {[%clk 0:00:02]}  Kh3 {[%clk 0:00:21]} 61. Rg3+ {[%clk 0:00:02]}  Kh2 {[%clk 0:00:14]} 0-1


[Site "https://www.chess.com"]

[Event "Titled Tuesday Blitz January 25 2022"]
[White "Pranav, V"]
[Black "Espinosa Veloz, Ermes"]
[WhiteFideId "25060783"]
[BlackFideId "3507424"]
[WhiteElo "2349"]
[BlackElo "2333"]
[Result "1-0"]
[Round "04"]
[TimeControl "180+1"]
[Date "2022.01.26"]
[WhiteClock "0:00:57"]
[BlackClock "0:00:36"]

1. e4 {[%clk 0:03:00]}  c5 {[%clk 0:02:59]} 2. Nf3 {[%clk 0:03:00]}  d6 {[%clk 0:02:58]} 3. Bb5+ {[%clk 0:02:59]}  Nd7 {[%clk 0:02:57]} 4. d4 {[%clk 0:02:58]}  cxd4 {[%clk 0:02:56]} 5. Qxd4 {[%clk 0:02:59]}  a6 {[%clk 0:02:55]} 6. Ba4 {[%clk 0:02:59]}  b5 {[%clk 0:02:46]} 7. Bb3 {[%clk 0:02:59]}  e6 {[%clk 0:02:39]} 8. O-O {[%clk 0:02:58]}  Ngf6 {[%clk 0:02:38]} 9. a4 {[%clk 0:02:56]}  Rb8 {[%clk 0:02:27]} 10. axb5 {[%clk 0:02:55]}  axb5 {[%clk 0:02:28]} 11. Re1 {[%clk 0:02:55]}  Be7 {[%clk 0:02:27]} 12. Nc3 {[%clk 0:02:52]}  O-O {[%clk 0:02:26]} 13. Bg5 {[%clk 0:02:44]}  Nc5 {[%clk 0:02:25]} 14. h3 {[%clk 0:02:35]}  Nxb3 {[%clk 0:02:22]} 15. cxb3 {[%clk 0:02:34]}  h6 {[%clk 0:02:16]} 16. Bh4 {[%clk 0:02:33]}  b4 {[%clk 0:02:14]} 17. Na4 {[%clk 0:02:30]}  e5 {[%clk 0:02:14]} 18. Qd3 {[%clk 0:02:29]}  Be6 {[%clk 0:02:11]} 19. Nd2 {[%clk 0:02:27]}  d5 {[%clk 0:01:13]} 20. exd5 {[%clk 0:02:20]}  Qxd5 {[%clk 0:01:14]} 21. Qxd5 {[%clk 0:02:17]}  Nxd5 {[%clk 0:01:14]} 22. Bxe7 {[%clk 0:02:15]}  Nxe7 {[%clk 0:01:15]} 23. Rxe5 {[%clk 0:02:15]}  Ng6 {[%clk 0:01:09]} 24. Re4 {[%clk 0:02:12]}  Rfd8 {[%clk 0:01:08]} 25. Nc4 {[%clk 0:02:12]}  Bf5 {[%clk 0:00:54]} 26. Re3 {[%clk 0:02:10]}  Rbc8 {[%clk 0:00:48]} 27. Nab6 {[%clk 0:02:06]}  Rc6 {[%clk 0:00:46]} 28. Ra8 {[%clk 0:01:33]}  Rxa8 {[%clk 0:00:45]} 29. Nxa8 {[%clk 0:01:34]}  Ra6 {[%clk 0:00:44]} 30. Nab6 {[%clk 0:01:34]}  Ra1+ {[%clk 0:00:45]} 31. Kh2 {[%clk 0:01:34]}  Rd1 {[%clk 0:00:37]} 32. Re8+ {[%clk 0:01:00]}  Kh7 {[%clk 0:00:37]} 33. Ne3 {[%clk 0:00:57]}  Be6 {[%clk 0:00:36]} 34. Nxd1 {[%clk 0:00:57]} 1-0


[Site "https://www.chess.com"]

[Event "Titled Tuesday Blitz January 25 2022"]
[White "Pultinevicius, Paulius"]
[Black "Ovetchkin, Roman"]
[WhiteFideId "12809390"]
[BlackFideId "4119991"]
[WhiteElo "2413"]
[BlackElo "2409"]
[Result "1/2-1/2"]
[Round "04"]
[TimeControl "180+1"]
[Date "2022.01.26"]
[WhiteClock "0:00:26"]
[BlackClock "0:00:03"]

1. b3 {[%clk 0:03:00]}  Nf6 {[%clk 0:02:58]} 2. Bb2 {[%clk 0:03:01]}  g6 {[%clk 0:02:59]} 3. Nf3 {[%clk 0:03:01]}  Bg7 {[%clk 0:02:58]} 4. e3 {[%clk 0:03:02]}  O-O {[%clk 0:02:58]} 5. d4 {[%clk 0:03:03]}  d5 {[%clk 0:02:46]} 6. h3 {[%clk 0:02:59]}  c5 {[%clk 0:02:43]} 7. Bd3 {[%clk 0:02:44]}  Nc6 {[%clk 0:02:41]} 8. O-O {[%clk 0:02:38]}  cxd4 {[%clk 0:02:36]} 9. exd4 {[%clk 0:02:34]}  Nb4 {[%clk 0:02:34]} 10. Be2 {[%clk 0:02:31]}  Bf5 {[%clk 0:02:34]} 11. Na3 {[%clk 0:02:31]}  Rc8 {[%clk 0:02:31]} 12. c3 {[%clk 0:02:30]}  Nc6 {[%clk 0:02:31]} 13. Nc2 {[%clk 0:02:30]}  Ne4 {[%clk 0:02:25]} 14. Ne3 {[%clk 0:02:29]}  Be6 {[%clk 0:02:00]} 15. Bd3 {[%clk 0:02:29]}  Bh6 {[%clk 0:01:50]} 16. Qe2 {[%clk 0:02:27]}  f5 {[%clk 0:01:44]} 17. Rfd1 {[%clk 0:02:19]}  Bf7 {[%clk 0:01:32]} 18. Rac1 {[%clk 0:02:18]}  e6 {[%clk 0:01:32]} 19. c4 {[%clk 0:02:15]}  Qa5 {[%clk 0:01:21]} 20. a3 {[%clk 0:02:03]}  Qb6 {[%clk 0:01:18]} 21. b4 {[%clk 0:01:59]}  a6 {[%clk 0:00:40]} 22. b5 {[%clk 0:01:50]}  axb5 {[%clk 0:00:39]} 23. cxd5 {[%clk 0:01:51]}  exd5 {[%clk 0:00:37]} 24. Bxb5 {[%clk 0:01:51]}  Be6 {[%clk 0:00:16]} 25. a4 {[%clk 0:01:48]}  Na5 {[%clk 0:00:14]} 26. Ne5 {[%clk 0:01:43]}  Nb3 {[%clk 0:00:11]} 27. Rxc8 {[%clk 0:01:41]}  Rxc8 {[%clk 0:00:12]} 28. Bd7 {[%clk 0:01:37]}  Bxd7 {[%clk 0:00:11]} 29. Nxd7 {[%clk 0:01:38]}  Qe6 {[%clk 0:00:11]} 30. Nxd5 {[%clk 0:01:20]}  Qxd5 {[%clk 0:00:09]} 31. Nb6 {[%clk 0:01:17]}  Qc6 {[%clk 0:00:08]} 32. Nxc8 {[%clk 0:01:16]}  Qxc8 {[%clk 0:00:09]} 33. d5 {[%clk 0:01:14]}  Nbc5 {[%clk 0:00:09]} 34. d6 {[%clk 0:01:13]}  Nd7 {[%clk 0:00:09]} 35. Qb5 {[%clk 0:01:09]}  Qc6 {[%clk 0:00:08]} 36. Qxc6 {[%clk 0:01:08]}  bxc6 {[%clk 0:00:08]} 37. a5 {[%clk 0:01:09]}  Nec5 {[%clk 0:00:08]} 38. Bd4 {[%clk 0:01:09]}  Na6 {[%clk 0:00:08]} 39. Rb1 {[%clk 0:01:09]}  c5 {[%clk 0:00:09]} 40. Rb7 {[%clk 0:01:09]}  cxd4 {[%clk 0:00:06]} 41. Rxd7 {[%clk 0:01:08]}  d3 {[%clk 0:00:06]} 42. Kf1 {[%clk 0:01:09]}  d2 {[%clk 0:00:04]} 43. Ke2 {[%clk 0:01:08]}  Nc5 {[%clk 0:00:04]} 44. Re7 {[%clk 0:01:06]}  Na4 {[%clk 0:00:03]} 45. Re3 {[%clk 0:00:36]}  Bxe3 {[%clk 0:00:03]} 46. fxe3 {[%clk 0:00:35]}  Kf7 {[%clk 0:00:04]} 47. Kxd2 {[%clk 0:00:30]}  Ke6 {[%clk 0:00:04]} 48. a6 {[%clk 0:00:25]}  Kxd6 {[%clk 0:00:05]} 49. a7 {[%clk 0:00:26]}  Nb6 {[%clk 0:00:05]} 50. Kd3 {[%clk 0:00:22]}  Kc7 {[%clk 0:00:06]} 51. Kd4 {[%clk 0:00:22]}  Kb7 {[%clk 0:00:06]} 52. Ke5 {[%clk 0:00:22]}  Nc4+ {[%clk 0:00:06]} 53. Kf6 {[%clk 0:00:23]}  Nxe3 {[%clk 0:00:06]} 54. g3 {[%clk 0:00:22]}  Nf1 {[%clk 0:00:05]} 55. g4 {[%clk 0:00:14]}  f4 {[%clk 0:00:05]} 56. Kg5 {[%clk 0:00:14]}  f3 {[%clk 0:00:04]} 57. Kf4 {[%clk 0:00:15]}  Nd2 {[%clk 0:00:02]} 58. Ke3 {[%clk 0:00:16]}  Nc4+ {[%clk 0:00:02]} 59. Kxf3 {[%clk 0:00:16]}  h6 {[%clk 0:00:01]} 60. Kf4 {[%clk 0:00:17]}  Kxa7 {[%clk 0:00:01]} 61. Ke4 {[%clk 0:00:17]}  Kb6 {[%clk 0:00:01]} 62. Kd5 {[%clk 0:00:18]}  Ne3+ {[%clk 0:00:01]} 63. Ke6 {[%clk 0:00:19]}  Ng2 {[%clk 0:00:01]} 64. Kf6 {[%clk 0:00:19]}  Nh4 {[%clk 0:00:02]} 65. Kg7 {[%clk 0:00:19]}  h5 {[%clk 0:00:01]} 66. gxh5 {[%clk 0:00:19]}  gxh5 {[%clk 0:00:01]} 67. Kh6 {[%clk 0:00:20]}  Nf3 {[%clk 0:00:02]} 68. Kxh5 {[%clk 0:00:20]}  Kc5 {[%clk 0:00:03]} 69. Kg4 {[%clk 0:00:21]}  Ne5+ {[%clk 0:00:03]} 70. Kf5 {[%clk 0:00:22]}  Nf3 {[%clk 0:00:03]} 71. Kf4 {[%clk 0:00:21]}  Nh4 {[%clk 0:00:04]} 72. Kg5 {[%clk 0:00:21]}  Ng2 {[%clk 0:00:04]} 73. Kg4 {[%clk 0:00:22]}  Kd5 {[%clk 0:00:03]} 74. Kg3 {[%clk 0:00:22]}  Ne3 {[%clk 0:00:03]} 75. Kf4 {[%clk 0:00:23]}  Ng2+ {[%clk 0:00:04]} 76. Kf5 {[%clk 0:00:24]}  Ne3+ {[%clk 0:00:04]} 77. Kf6 {[%clk 0:00:25]}  Ng2 {[%clk 0:00:04]} 78. h4 {[%clk 0:00:26]}  Nxh4 {[%clk 0:00:03]} 1/2-1/2


[Site "https://www.chess.com"]

[Event "Titled Tuesday Blitz January 25 2022"]
[White "Romanchuk, Viktor"]
[Black "Samunenkov, Ihor"]
[WhiteFideId "14109271"]
[BlackFideId "14187086"]
[WhiteElo "2242"]
[BlackElo "2406"]
[Result "0-1"]
[Round "04"]
[TimeControl "180+1"]
[Date "2022.01.26"]
[WhiteClock "0:00:14"]
[BlackClock "0:00:05"]

1. d4 {[%clk 0:03:00]}  d5 {[%clk 0:02:59]} 2. c4 {[%clk 0:03:00]}  e6 {[%clk 0:02:59]} 3. Nc3 {[%clk 0:02:59]}  a6 {[%clk 0:03:00]} 4. cxd5 {[%clk 0:02:56]}  exd5 {[%clk 0:03:01]} 5. Nf3 {[%clk 0:02:57]}  Nf6 {[%clk 0:03:01]} 6. Bf4 {[%clk 0:02:56]}  Bd6 {[%clk 0:02:59]} 7. Bg3 {[%clk 0:02:56]}  O-O {[%clk 0:02:57]} 8. e3 {[%clk 0:02:56]}  Bf5 {[%clk 0:02:58]} 9. Bd3 {[%clk 0:02:55]}  Bxd3 {[%clk 0:02:55]} 10. Qxd3 {[%clk 0:02:56]}  c6 {[%clk 0:02:51]} 11. O-O {[%clk 0:02:55]}  Bxg3 {[%clk 0:02:51]} 12. hxg3 {[%clk 0:02:54]}  Qd6 {[%clk 0:02:52]} 13. Rab1 {[%clk 0:02:53]}  Nbd7 {[%clk 0:02:50]} 14. b4 {[%clk 0:02:52]}  b5 {[%clk 0:02:22]} 15. Rfc1 {[%clk 0:02:29]}  Nb6 {[%clk 0:02:20]} 16. e4 {[%clk 0:02:29]}  dxe4 {[%clk 0:02:09]} 17. Nxe4 {[%clk 0:02:29]}  Nxe4 {[%clk 0:02:09]} 18. Qxe4 {[%clk 0:02:30]}  Nc4 {[%clk 0:01:58]} 19. Ne5 {[%clk 0:02:22]}  Nd2 {[%clk 0:01:52]} 20. Qxc6 {[%clk 0:02:08]}  Qxc6 {[%clk 0:01:33]} 21. Nxc6 {[%clk 0:02:09]}  Nxb1 {[%clk 0:01:33]} 22. Rxb1 {[%clk 0:02:10]}  f6 {[%clk 0:01:33]} 23. d5 {[%clk 0:02:05]}  Kf7 {[%clk 0:01:30]} 24. Rd1 {[%clk 0:01:54]}  Rac8 {[%clk 0:01:27]} 25. Rd3 {[%clk 0:01:38]}  Rfe8 {[%clk 0:01:10]} 26. Kf1 {[%clk 0:01:32]}  Re4 {[%clk 0:00:49]} 27. f3 {[%clk 0:01:16]}  Ree8 {[%clk 0:00:40]} 28. g4 {[%clk 0:01:14]}  Rc7 {[%clk 0:00:36]} 29. Nd4 {[%clk 0:00:49]}  Rd7 {[%clk 0:00:28]} 30. Nf5 {[%clk 0:00:48]}  g6 {[%clk 0:00:22]} 31. Ne3 {[%clk 0:00:47]}  Rc8 {[%clk 0:00:22]} 32. Ra3 {[%clk 0:00:40]}  Rd6 {[%clk 0:00:21]} 33. Kf2 {[%clk 0:00:36]}  Ke7 {[%clk 0:00:20]} 34. Rd3 {[%clk 0:00:32]}  Kd7 {[%clk 0:00:21]} 35. Rd1 {[%clk 0:00:31]}  Rc7 {[%clk 0:00:17]} 36. Ke2 {[%clk 0:00:28]}  Ke7 {[%clk 0:00:11]} 37. Kd3 {[%clk 0:00:27]}  Rd8 {[%clk 0:00:11]} 38. Kd4 {[%clk 0:00:26]}  Kd6 {[%clk 0:00:11]} 39. Rh1 {[%clk 0:00:25]}  Re8 {[%clk 0:00:11]} 40. Rd1 {[%clk 0:00:23]}  Rec8 {[%clk 0:00:10]} 41. Rh1 {[%clk 0:00:22]}  Ra8 {[%clk 0:00:09]} 42. Rd1 {[%clk 0:00:21]}  a5 {[%clk 0:00:09]} 43. bxa5 {[%clk 0:00:20]}  Rxa5 {[%clk 0:00:09]} 44. Rd2 {[%clk 0:00:21]}  Ra4+ {[%clk 0:00:09]} 45. Kd3 {[%clk 0:00:21]}  Ra3+ {[%clk 0:00:09]} 46. Ke2 {[%clk 0:00:21]}  Re7 {[%clk 0:00:09]} 47. Rd3 {[%clk 0:00:21]}  Rxd3 {[%clk 0:00:09]} 48. Kxd3 {[%clk 0:00:21]}  Ra7 {[%clk 0:00:10]} 49. Nc2 {[%clk 0:00:17]}  Kxd5 {[%clk 0:00:08]} 50. a3 {[%clk 0:00:15]}  Kc5 {[%clk 0:00:08]} 51. Kc3 {[%clk 0:00:14]}  Re7 {[%clk 0:00:08]} 52. Kd3 {[%clk 0:00:14]}  h5 {[%clk 0:00:05]} 53. gxh5 {[%clk 0:00:13]}  gxh5 {[%clk 0:00:06]} 54. g4 {[%clk 0:00:14]}  h4 {[%clk 0:00:05]} 55. Ne3 {[%clk 0:00:13]}  h3 {[%clk 0:00:05]} 56. Nf1 {[%clk 0:00:13]}  Re1 {[%clk 0:00:05]} 57. Ng3 {[%clk 0:00:13]}  h2 {[%clk 0:00:05]} 58. Ne4+ {[%clk 0:00:13]}  Rxe4 {[%clk 0:00:05]} 59. Kxe4 {[%clk 0:00:14]}  h1=Q {[%clk 0:00:05]} 0-1


[Site "https://www.chess.com"]

[Event "Titled Tuesday Blitz January 25 2022"]
[White "Sanal, Vahap"]
[Black "Yuan, Qingyu"]
[WhiteFideId "6300545"]
[BlackFideId "8609772"]
[WhiteElo "2603"]
[BlackElo "2359"]
[Result "1-0"]
[Round "04"]
[TimeControl "180+1"]
[Date "2022.01.26"]
[WhiteClock "0:01:14"]
[BlackClock "0:00:03"]

1. e4 {[%clk 0:03:00]}  c6 {[%clk 0:02:59]} 2. Nf3 {[%clk 0:02:58]}  d5 {[%clk 0:03:00]} 3. d3 {[%clk 0:02:58]}  dxe4 {[%clk 0:03:00]} 4. dxe4 {[%clk 0:02:58]}  Qxd1+ {[%clk 0:03:01]} 5. Kxd1 {[%clk 0:02:59]}  Nf6 {[%clk 0:03:01]} 6. Nbd2 {[%clk 0:02:59]}  g6 {[%clk 0:02:53]} 7. Ne5 {[%clk 0:02:59]}  Bh6 {[%clk 0:02:48]} 8. f3 {[%clk 0:02:56]}  Nbd7 {[%clk 0:02:46]} 9. Nd3 {[%clk 0:02:52]}  O-O {[%clk 0:02:44]} 10. Nc4 {[%clk 0:02:50]}  Bxc1 {[%clk 0:02:43]} 11. Kxc1 {[%clk 0:02:50]}  a5 {[%clk 0:02:22]} 12. a4 {[%clk 0:02:49]}  b6 {[%clk 0:02:18]} 13. b3 {[%clk 0:02:38]}  Ba6 {[%clk 0:02:14]} 14. Nde5 {[%clk 0:02:36]}  Bxc4 {[%clk 0:02:01]} 15. Nxc4 {[%clk 0:02:35]}  Rfd8 {[%clk 0:01:55]} 16. Kb2 {[%clk 0:02:34]}  Kf8 {[%clk 0:01:47]} 17. Be2 {[%clk 0:02:32]}  Ke8 {[%clk 0:01:32]} 18. g3 {[%clk 0:02:31]}  Rab8 {[%clk 0:01:31]} 19. e5 {[%clk 0:02:27]}  Nd5 {[%clk 0:01:29]} 20. f4 {[%clk 0:02:28]}  Nc5 {[%clk 0:01:26]} 21. Bf3 {[%clk 0:02:26]}  Nb4 {[%clk 0:01:21]} 22. Rad1 {[%clk 0:01:59]}  Ne6 {[%clk 0:01:05]} 23. c3 {[%clk 0:01:46]}  Nd5 {[%clk 0:00:59]} 24. Rd2 {[%clk 0:01:45]}  b5 {[%clk 0:00:55]} 25. Nxa5 {[%clk 0:01:38]}  bxa4 {[%clk 0:00:48]} 26. b4 {[%clk 0:01:38]}  Rb6 {[%clk 0:00:10]} 27. Nxc6 {[%clk 0:01:32]}  Rxc6 {[%clk 0:00:09]} 28. Bxd5 {[%clk 0:01:28]}  Rc7 {[%clk 0:00:05]} 29. Rhd1 {[%clk 0:01:27]}  Rdc8 {[%clk 0:00:04]} 30. Rd3 {[%clk 0:01:26]}  Ng7 {[%clk 0:00:04]} 31. b5 {[%clk 0:01:23]}  Rc5 {[%clk 0:00:03]} 32. Bc6+ {[%clk 0:01:22]}  R5xc6 {[%clk 0:00:03]} 33. bxc6 {[%clk 0:01:22]}  Ne6 {[%clk 0:00:03]} 34. Ka3 {[%clk 0:01:13]}  Rxc6 {[%clk 0:00:03]} 35. g4 {[%clk 0:01:13]}  h6 {[%clk 0:00:03]} 36. f5 {[%clk 0:01:14]}  gxf5 {[%clk 0:00:03]} 37. gxf5 {[%clk 0:01:14]} 1-0


[Site "https://www.chess.com"]

[Event "Titled Tuesday Blitz January 25 2022"]
[White "Saravana, Krishnan P."]
[Black "Bacrot, Etienne"]
[WhiteFideId "5018382"]
[BlackFideId "605506"]
[WhiteElo "2210"]
[BlackElo "2673"]
[Result "1-0"]
[Round "04"]
[TimeControl "180+1"]
[Date "2022.01.26"]
[WhiteClock "0:00:09"]
[BlackClock "0:00:14"]

1. e4 {[%clk 0:03:00]}  c5 {[%clk 0:02:57]} 2. Nf3 {[%clk 0:03:00]}  d6 {[%clk 0:02:56]} 3. Bc4 {[%clk 0:02:58]}  Nf6 {[%clk 0:02:54]} 4. Qe2 {[%clk 0:02:58]}  Nc6 {[%clk 0:02:53]} 5. c3 {[%clk 0:02:57]}  e6 {[%clk 0:02:53]} 6. Bb3 {[%clk 0:02:56]}  Be7 {[%clk 0:02:51]} 7. O-O {[%clk 0:02:56]}  O-O {[%clk 0:02:45]} 8. d4 {[%clk 0:02:56]}  d5 {[%clk 0:02:27]} 9. e5 {[%clk 0:02:53]}  Ne4 {[%clk 0:02:27]} 10. Nbd2 {[%clk 0:02:52]}  Nxd2 {[%clk 0:02:02]} 11. Bxd2 {[%clk 0:02:51]}  Qb6 {[%clk 0:02:02]} 12. Be3 {[%clk 0:02:47]}  Bd7 {[%clk 0:02:01]} 13. Rad1 {[%clk 0:02:45]}  Na5 {[%clk 0:01:51]} 14. dxc5 {[%clk 0:02:45]}  Bxc5 {[%clk 0:01:51]} 15. Bxc5 {[%clk 0:02:41]}  Qxc5 {[%clk 0:01:50]} 16. Nd4 {[%clk 0:02:41]}  Nxb3 {[%clk 0:01:45]} 17. axb3 {[%clk 0:02:39]}  a5 {[%clk 0:01:45]} 18. f4 {[%clk 0:02:37]}  f6 {[%clk 0:01:38]} 19. Kh1 {[%clk 0:02:25]}  Qc7 {[%clk 0:01:35]} 20. Qe3 {[%clk 0:01:57]}  fxe5 {[%clk 0:01:32]} 21. fxe5 {[%clk 0:01:57]}  h6 {[%clk 0:01:30]} 22. Qg3 {[%clk 0:01:41]}  Qc5 {[%clk 0:01:16]} 23. h3 {[%clk 0:01:30]}  b5 {[%clk 0:01:14]} 24. Qg6 {[%clk 0:01:22]}  Qe7 {[%clk 0:01:13]} 25. Kh2 {[%clk 0:00:57]}  b4 {[%clk 0:01:08]} 26. cxb4 {[%clk 0:00:56]}  axb4 {[%clk 0:01:06]} 27. Rc1 {[%clk 0:00:56]}  Rac8 {[%clk 0:00:53]} 28. Rxf8+ {[%clk 0:00:54]}  Qxf8 {[%clk 0:00:45]} 29. Rxc8 {[%clk 0:00:17]}  Bxc8 {[%clk 0:00:45]} 30. Qg3 {[%clk 0:00:16]}  Bd7 {[%clk 0:00:38]} 31. Qe3 {[%clk 0:00:15]}  Qf1 {[%clk 0:00:36]} 32. Nf3 {[%clk 0:00:14]}  Qd1 {[%clk 0:00:34]} 33. Qc5 {[%clk 0:00:13]}  Qxb3 {[%clk 0:00:30]} 34. Qe7 {[%clk 0:00:13]}  Qa4 {[%clk 0:00:28]} 35. Nd4 {[%clk 0:00:11]}  b3 {[%clk 0:00:26]} 36. Nxe6 {[%clk 0:00:09]}  d4 {[%clk 0:00:14]} 37. Qxg7# {[%clk 0:00:09]} 1-0


[Site "https://www.chess.com"]